fUSD/lending_fUSD_20260115
["ID","MTS","AMOUNT","RATE_DAILY","PERIOD"]
[402023317,1768481433950,-1027.11678612,0.00014588,2]
[402023318,1768481433961,-3753.07156661,0.00014588,2]
[402023319,1768481433972,-7477.9414305,0.00014588,2]
[402023320,1768481433983,-1487.95536,0.00014588,2]
[402023321,1768481433993,-5879.39187,0.00014588,2]
[402023322,1768481434004,-510.0,0.00014588,2]
[402023323,1768481434015,-1650.0,0.00014588,2]
[402023324,1768481434033,-48367.72375862,0.00014588,2]
[402023325,1768481434044,-753.54269787,0.00014588,2]
[402023326,1768481437861,-18917.28159313,0.00014588,2]
[402023327,1768481437915,-28272.52426398,0.00014588,2]
[402023343,1768481439954,-19149.37087493,0.00014588,2]
[402023344,1768481440118,-366.77809616,0.00014588,2]
[402023345,1768481440178,-678409.34710087,0.00014588,2]
[402023346,1768481440189,-150.0,0.00014589,2]
[402023347,1768481440199,-717.50450085,0.00014589,2]
[402023348,1768481440211,-489.2997,0.0001459,2]
[402023349,1768481440220,-6054.4455,0.0001459,2]
[402023350,1768481440230,-2500.0,0.0001459,2]
[402023351,1768481440240,-247.85655226,0.00014637,2]
[402023352,1768481440251,-166.66,0.00014642,2]
[402023353,1768481440261,-500.0,0.00014681,2]
[402023354,1768481440271,-500.0,0.00014681,2]
[402023355,1768481440281,-500.0,0.00014681,2]
[402023356,1768481440291,-500.0,0.00014681,2]
[402023357,1768481440301,-500.0,0.00014681,2]
[402023358,1768481440311,-500.0,0.00014681,2]
[402023359,1768481440320,-500.0,0.00014681,2]
[402023360,1768481440330,-500.0,0.00014681,2]
[402023361,1768481440340,-500.0,0.00014681,2]
[402023362,1768481440350,-500.0,0.00014681,2]
[402023363,1768481440359,-500.0,0.00014681,2]
[402023364,1768481440369,-500.0,0.00014681,2]
[402023365,1768481440379,-500.0,0.00014681,2]
[402023366,1768481440389,-500.0,0.00014681,2]
[402023367,1768481440398,-500.0,0.00014681,2]
[402023368,1768481440408,-500.0,0.00014681,2]
[402023369,1768481440418,-500.0,0.00014681,2]
[402023370,1768481440431,-500.0,0.00014681,2]
[402023371,1768481440444,-200.0,0.00014681,2]
[402023372,1768481440454,-500.0,0.00014681,2]
[402023373,1768481440463,-500.0,0.00014681,2]
[402023374,1768481440473,-500.0,0.00014681,2]
[402023375,1768481440483,-500.0,0.00014681,2]
[402023376,1768481440493,-200.0,0.00014681,2]
[402023377,1768481440503,-159.36431657,0.00014681,2]
[402023378,1768481440513,-500.0,0.00014681,2]
[402023379,1768481440522,-151.0,0.00014681,2]
[402023380,1768481440532,-151.0,0.00014681,2]
[402023381,1768481440541,-151.0,0.00014681,2]
[402023382,1768481440551,-151.0,0.00014681,2]
[402023383,1768481440560,-151.0,0.00014681,2]
[402023384,1768481440570,-1000.0,0.00014689,2]
[402023385,1768481440580,-1248.69114802,0.00014689,2]
[402023386,1768481440591,-285.70443904,0.00014689,2]
[402023387,1768481440601,-7925.18889769,0.00014689,2]
[402023388,1768481440610,-2337.76615348,0.00014689,2]
[402023389,1768481440620,-500.0,0.00014689,2]
[402023390,1768481440630,-500.0,0.00014689,2]
[402023391,1768481440643,-516.26,0.00014689,2]
[402023392,1768481440653,-500.0,0.00014689,2]
[402023393,1768481440663,-500.0,0.00014689,2]
[402023394,1768481440672,-500.0,0.00014689,2]
[402023395,1768481440682,-500.0,0.00014689,2]
[402023396,1768481440692,-500.0,0.00014689,2]
[402023397,1768481440702,-500.0,0.00014689,2]
[402023398,1768481440711,-500.0,0.00014689,2]
[402023399,1768481440721,-500.0,0.00014689,2]
[402023400,1768481440731,-500.0,0.00014689,2]
[402023401,1768481440740,-512.6608624,0.00014689,2]
[402023402,1768481440750,-500.0,0.00014689,2]
[402023403,1768481440759,-500.0,0.00014689,2]
[402023404,1768481440769,-151.0,0.0001469,2]
[402023405,1768481440778,-151.0,0.0001469,2]
[402023406,1768481440788,-2652.27,0.00014726,2]
[402023407,1768481440798,-2969.50760811,0.00014737,2]
[402023408,1768481440807,-500.0,0.00014854,2]
[402023409,1768481440816,-459.82,0.00014861,2]
[402023410,1768481440826,-500.0,0.00014861,2]
[402023411,1768481440839,-200.0,0.00014937,2]
[402023412,1768481440849,-166.66,0.00014944,2]
[402023413,1768481440859,-2654.99,0.00014987,2]
[402023414,1768481440869,-2969.50760807,0.00015088,2]
[402023415,1768481440879,-500.0,0.00015096,2]
[402023416,1768481440888,-500.0,0.00015096,2]
[402023417,1768481440898,-500.0,0.00015096,2]
[402023418,1768481440907,-500.0,0.00015096,2]
[402023419,1768481440917,-500.0,0.00015096,2]
[402023421,1768481440926,-459.82,0.00015135,2]
[402023422,1768481440935,-500.0,0.00015135,2]
[402023424,1768481440944,-2294.48045399,0.00015177,2]
[402023426,1768481440954,-500.0,0.00015229,2]
[402023428,1768481440964,-166.66,0.00015246,2]
[402023430,1768481440973,-525.51243154,0.00015337,2]
[402023432,1768481440982,-500.0,0.00015337,2]
[402023435,1768481440992,-500.0,0.00015337,2]
[402023437,1768481441002,-500.0,0.00015337,2]
[402023439,1768481441012,-551.83023748,0.00015337,2]
[402023441,1768481441023,-500.0,0.00015337,2]
[402023443,1768481441033,-500.0,0.00015337,2]
[402023445,1768481441043,-486.66435485,0.00015337,2]
[402023447,1768481441052,-500.0,0.00015337,2]
[402023449,1768481441061,-508.83778667,0.00015337,2]
[402023451,1768481441071,-500.0,0.00015337,2]
[402023453,1768481441081,-510.1418066,0.00015337,2]
[402023455,1768481441090,-1000.0,0.00015348,2]
[402023457,1768481441100,-459.82,0.00015409,2]
[402023460,1768481441109,-2969.50760807,0.0001544,2]
[402023462,1768481441118,-500.0,0.00015447,2]
[402023464,1768481441127,-505.24437882,0.00015447,2]
[402023466,1768481441137,-500.0,0.00015447,2]
[402023468,1768481441146,-500.0,0.00015447,2]
[402023470,1768481441155,-500.0,0.00015447,2]
[402023472,1768481441164,-500.0,0.00015447,2]
[402023474,1768481441174,-502.25093775,0.00015447,2]
[402023476,1768481441184,-500.0,0.00015447,2]
[402023478,1768481441193,-506.76572832,0.00015447,2]
[402023480,1768481441203,-500.0,0.00015447,2]
[402023482,1768481441214,-500.0,0.00015447,2]
[402023484,1768481441226,-500.0,0.00015447,2]
[402023486,1768481441235,-500.0,0.00015447,2]
[402023488,1768481441245,-500.0,0.00015447,2]
[402023491,1768481441254,-500.0,0.00015447,2]
[402023493,1768481441263,-500.0,0.00015447,2]
[402023494,1768481441272,-500.0,0.00015447,2]
[402023495,1768481441281,-2294.48045399,0.00015518,2]
[402023496,1768481441291,-9788.81763699,0.00015537,2]
[402023497,1768481441305,-166.66,0.00015548,2]
[402023498,1768481441314,-459.85,0.00015683,2]
[402023499,1768481441323,-329.34308168,0.00015774,2]
[402023500,1768481441333,-195.0,0.00015774,2]
[402023501,1768481441342,-300.0,0.00015774,2]
[402023502,1768481441351,-500.0,0.00015777,2]
[402023503,1768481441361,-2969.50760807,0.00015791,2]
[402023504,1768481441370,-166.66,0.0001585,2]
[402023505,1768481441380,-2294.48045399,0.00015858,2]
[402023506,1768481441389,-520.56,0.00015918,2]
[402023507,1768481441398,-4122.531506,0.00015966,2]
[402023508,1768481441408,-420.0,0.00015971,2]
[402023509,1768481441428,-1680.0,0.00016045,2]
[402023510,1768481441448,-353.02764746,0.00016059,2]
[402023511,1768481441464,-515.69930631,0.00016097,2]
[402023512,1768481441478,-2969.50760807,0.00016143,2]
[402023513,1768481441496,-2294.48045399,0.00016198,2]
[402023514,1768481441513,-600.68123158,0.00016438,2]
[402023515,1768481441531,-500.0,0.00016472,2]
[402023516,1768481441547,-2969.50760807,0.00016494,2]
[402023517,1768481441561,-520.56,0.00016515,2]
[402023518,1768481441581,-2294.48045399,0.00016539,2]
[402023519,1768481441608,-1000.0,0.00016763,2]
[402023520,1768481441625,-1000.0,0.00016763,2]
[402023521,1768481441641,-1000.0,0.00016763,2]
[402023522,1768481441659,-1000.0,0.00016763,2]
[402023523,1768481441675,-1000.0,0.00016763,2]
[402023524,1768481441693,-1000.0,0.00016763,2]
[402023525,1768481441708,-1000.0,0.00016763,2]
[402023526,1768481441723,-1000.0,0.00016763,2]
[402023527,1768481441739,-2969.50760807,0.00016846,2]
[402023528,1768481441764,-2294.48045399,0.00016879,2]
[402023529,1768481441782,-1000.0,0.00016898,2]
[402023530,1768481441798,-250.0,0.00017,2]
[402023531,1768481441811,-206.90356399,0.00017089,2]
[402023532,1768481441824,-500.0,0.00017098,2]
[402023533,1768481441840,-500.0,0.00017098,2]
[402023534,1768481441851,-500.0,0.00017098,2]
[402023535,1768481441863,-500.0,0.00017098,2]
[402023536,1768481441881,-1000.0,0.00017099,2]
[402023537,1768481441895,-1239.0,0.00017099,2]
[402023538,1768481441907,-1000.0,0.00017099,2]
[402023539,1768481441919,-1000.0,0.00017099,2]
[402023540,1768481441933,-638.32515516,0.00017099,2]
[402023541,1768481441949,-506.45376075,0.00017099,2]
[402023542,1768481441985,-578.20924308,0.00017099,2]
[402023543,1768481442001,-2000.0,0.00017099,2]
[402023544,1768481442016,-500.0,0.00017099,2]
[402023545,1768481442031,-2000.0,0.00017099,2]
[402023546,1768481442047,-250.0,0.00017099,2]
[402023547,1768481442061,-2000.0,0.00017099,2]
[402023548,1768481442076,-2000.0,0.00017099,2]
[402023549,1768481442090,-2000.0,0.00017099,2]
[402023550,1768481442104,-2000.0,0.00017099,2]
[402023551,1768481442118,-500.0,0.00017099,2]
[402023552,1768481442131,-2000.0,0.00017099,2]
[402023553,1768481442145,-500.0,0.00017099,2]
[402023554,1768481442158,-690.60823039,0.00017099,2]
[402023555,1768481442173,-500.0,0.00017099,2]
[402023556,1768481442187,-500.0,0.00017099,2]
[402023557,1768481442202,-500.0,0.00017099,2]
[402023558,1768481442215,-500.0,0.00017099,2]
[402023559,1768481442230,-3000.0,0.00017099,2]
[402023560,1768481442243,-250.0,0.00017099,2]
[402023561,1768481442260,-3000.0,0.00017099,2]
[402023562,1768481442273,-3000.0,0.00017099,2]
[402023563,1768481442287,-2500.0,0.00017099,2]
[402023564,1768481442302,-3000.0,0.00017099,2]
[402023565,1768481442314,-3000.0,0.00017099,2]
[402023566,1768481442327,-2500.0,0.00017099,2]
[402023567,1768481442340,-3000.0,0.00017099,2]
[402023568,1768481442353,-3000.0,0.00017099,2]
[402023569,1768481442365,-574.12855637,0.00017099,2]
[402023570,1768481442378,-2500.0,0.00017099,2]
[402023571,1768481442391,-3000.0,0.00017099,2]
[402023572,1768481442405,-3000.0,0.00017099,2]
[402023573,1768481442419,-2500.0,0.00017099,2]
[402023574,1768481442437,-3000.0,0.00017099,2]
[402023575,1768481442451,-2617.2381674,0.00017099,2]
[402023576,1768481442465,-174.61919141,0.00017099,2]
[402023577,1768481442478,-2500.0,0.00017099,2]
[402023578,1768481442491,-3000.0,0.00017099,2]
[402023579,1768481442504,-620.0,0.00017099,2]
[402023580,1768481442517,-2500.0,0.00017099,2]
[402023582,1768481442529,-3000.0,0.00017099,2]
[402023583,1768481442542,-2500.0,0.00017099,2]
[402023584,1768481442554,-3000.0,0.00017099,2]
[402023585,1768481442566,-2500.0,0.00017099,2]
[402023586,1768481442578,-3000.0,0.00017099,2]
[402023587,1768481442591,-2500.0,0.00017099,2]
[402023588,1768481442603,-1856.73611531,0.00017099,2]
[402023589,1768481442616,-2500.0,0.00017099,2]
[402023590,1768481442628,-322.6107,0.00017099,2]
[402023592,1768481442641,-2500.0,0.00017099,2]
[402023594,1768481442654,-1000.0,0.00017099,2]
[402023596,1768481442667,-1000.0,0.00017099,2]
[402023598,1768481442679,-1000.0,0.00017099,2]
[402023599,1768481442692,-3000.0,0.00017099,2]
[402023600,1768481442705,-1056.37014812,0.00017099,2]
[402023601,1768481442718,-721.12765535,0.00017099,2]
[402023602,1768481442730,-520.56,0.00017112,2]
[402023603,1768481442743,-2969.50760807,0.00017197,2]
[402023604,1768481442756,-2294.48045399,0.00017219,2]
[402023605,1768481442768,-4122.531506,0.00017343,2]
[402023606,1768481442780,-450.38,0.00017392,2]
[402023607,1768481442793,-200.0,0.000174,6]
[402023608,1768481442806,-587.0,0.00017487,2]
[402023609,1768481442819,-239.0,0.00017491,2]
[402023612,1768481442831,-500.0,0.000175,6]
[402023614,1768481442843,-239.0,0.00017507,2]
[402023616,1768481442857,-239.0,0.00017524,2]
[402023618,1768481442870,-239.0,0.00017535,2]
[402023621,1768481442883,-2969.50760807,0.00017549,2]
[402023622,1768481442895,-2294.48045399,0.0001756,2]
[402023623,1768481442908,-1360.9386285,0.00017597,2]
[402023624,1768481442921,-2400.85705789,0.00017597,2]
[402023625,1768481442934,-3591.53857277,0.00017597,2]
[402023626,1768481442946,-4859.4744,0.00017597,2]
[402023627,1768481442958,-800.0,0.000176,6]
[402023628,1768481442970,-500.0,0.00017616,2]
[402023629,1768481442983,-500.0,0.00017616,2]
[402023630,1768481442995,-239.0,0.0001762,2]
[402023631,1768481443007,-353.02764746,0.00017628,2]
[402023632,1768481443020,-595.37131296,0.00017647,2]
[402023633,1768481443032,-151.00000002,0.00017647,2]
[402023634,1768481443044,-2273.0,0.0001765,2]
[402023635,1768481443057,-239.0,0.00017692,2]
[402023636,1768481443070,-152.76518378,0.00017699,2]
[402023637,1768481443083,-250.0,0.00017699,2]
[402023638,1768481443096,-500.0,0.00017699,2]
[402023639,1768481443109,-1069.0,0.00017699,2]
[402023640,1768481443122,-1100.0,0.000177,6]
[402023641,1768481443135,-520.56,0.00017709,2]
[402023642,1768481443148,-12115.0,0.00017714,2]
[402023643,1768481443160,-239.0,0.00017721,2]
[402023644,1768481443173,-239.0,0.00017724,2]
[402023645,1768481443185,-8935.33,0.00017728,2]
[402023646,1768481443198,-9999.99,0.00017728,2]
[402023647,1768481443210,-9999.99,0.00017728,2]
[402023648,1768481443223,-999.99,0.00017728,2]
[402023649,1768481443236,-20237.73,0.00017728,2]
[402023650,1768481443249,-299.99,0.00017728,4]
[402023651,1768481443261,-9999.99,0.00017728,2]
[402023652,1768481443274,-150.99,0.00017728,2]
[402023653,1768481443286,-348.09,0.00017728,2]
[402023654,1768481443299,-9382.95,0.00017728,2]
[402023655,1768481443311,-2972.17,0.00017728,2]
[402023656,1768481443324,-462.63,0.00017728,2]
[402023657,1768481443336,-30255.81,0.00017728,2]
[402023658,1768481443349,-500.0,0.00017754,2]
[402023659,1768481443363,-1069.0,0.00017754,2]
[402023660,1768481443376,-1400.0,0.000178,6]
[402023661,1768481443388,-150.0,0.00017808,2]
[402023662,1768481443401,-500.0,0.00017809,2]
[402023663,1768481443413,-1069.0,0.00017809,2]
[402023664,1768481443429,-239.0,0.00017813,2]
[402023665,1768481443441,-239.0,0.00017838,2]
[402023666,1768481443454,-239.0,0.00017846,2]
[402023667,1768481443467,-200.0,0.00017855,2]
[402023668,1768481443480,-200.0,0.00017856,2]
[402023669,1768481443492,-200.0,0.00017856,2]
[402023670,1768481443504,-232.8570497,0.00017863,2]
[402023671,1768481443516,-512.72000291,0.00017863,2]
[402023672,1768481443528,-1069.0,0.00017863,2]
[402023673,1768481443539,-239.0,0.00017879,2]
[402023674,1768481443552,-250.49144649,0.00017883,2]
[402023675,1768481443563,-239.0,0.00017891,2]
[402023676,1768481443575,-2294.48045399,0.000179,2]
[402023677,1768481443587,-180.9784454,0.000179,2]
[402023678,1768481443599,-200.0,0.000179,6]
[402023679,1768481443612,-2969.50760807,0.000179,2]
[402023680,1768481443623,-270.45085774,0.000179,2]
[402023681,1768481443635,-261.71384085,0.000179,2]
[402023682,1768481443648,-186.60017558,0.000179,2]
[402023683,1768481443659,-4460.44726518,0.000179,2]
[402023684,1768481443672,-1412.64747878,0.000179,2]
[402023685,1768481443685,-1069.0,0.00017918,2]
[402023686,1768481443698,-239.0,0.00017927,2]
[402023687,1768481443709,-239.0,0.00017953,2]
[402023688,1768481443721,-233.81796729,0.00017973,2]
[402023689,1768481443733,-169.26751175,0.00017973,2]
[402023690,1768481443744,-1069.0,0.00017973,2]
[402023691,1768481443757,-150.0,0.00017973,2]
[402023692,1768481443769,-150.0,0.00017973,2]
[402023693,1768481443782,-166.56881832,0.00017982,2]
[402023694,1768481443795,-357.98265786,0.00017982,2]
[402023695,1768481443807,-1430.4987008,0.00017982,2]
[402023696,1768481443819,-154.69460384,0.00017989,2]
[402023697,1768481443831,-500.0,0.00017989,2]
[402023698,1768481443843,-239.0,0.0001799,2]
[402023699,1768481443855,-206.90356399,0.0001799,2]
[402023700,1768481443868,-206.90356399,0.0001799,2]
[402023701,1768481443880,-292.42921136,0.00017998,2]
[402023702,1768481443893,-502.00518748,0.00017998,2]
[402023703,1768481443906,-500.0,0.00017998,2]
[402023704,1768481443918,-507.4251083,0.00017998,2]
[402023705,1768481443932,-155.0,0.00017999,2]
[402023706,1768481443946,-1470.0067332,0.00017999,2]
[402023707,1768481443960,-157991.3911406,0.00017999,2]
[402023708,1768481443969,-300.0,0.00017999,2]
[402023709,1768481443978,-300.0,0.00017999,2]
[402023710,1768481443987,-300.0,0.00017999,2]
[402023711,1768481443997,-300.0,0.00017999,2]
[402023712,1768481444008,-500.0,0.00017999,2]
[402023713,1768481444017,-500.0,0.00017999,2]
[402023714,1768481444026,-500.0,0.00017999,2]
[402023715,1768481444035,-508.8446746,0.00017999,2]
[402023716,1768481444045,-500.0,0.00017999,2]
[402023717,1768481444054,-479.49119075,0.00017999,2]
[402023718,1768481444064,-629.87194158,0.00017999,2]
[402023719,1768481444073,-500.0,0.00017999,2]
[402023720,1768481444085,-314.6618923,0.00017999,2]
[402023721,1768481444100,-500.0,0.00017999,2]
[402023722,1768481444120,-500.0,0.00017999,2]
[402023723,1768481444136,-500.0,0.00017999,2]
[402023724,1768481444146,-500.0,0.00017999,2]
[402023725,1768481444156,-411.50229832,0.00017999,2]
[402023726,1768481444166,-1685188.46487977,0.00018,2]
[402023727,1768481444176,-127312.13035779,0.00018,2]
[402023728,1768481444632,-271.05,0.00018,2]
[402023729,1768481444673,-151.0,0.00018,2]
[402023730,1768481444702,-152.44708916,0.00018,2]
[402023731,1768481444716,-3537702.99546186,0.00018,2]
[402023733,1768481445552,-1200.0,0.00018,2]
[402023734,1768481445563,-289.16,0.00018,2]
[402023739,1768481445702,-1613.6,0.00018,2]
[402023740,1768481446301,-22416.27630679,0.00018,2]
[402023741,1768481446861,-812.38723706,0.00018,2]
[402023742,1768481447030,-303239.29395363,0.00018,2]
[402023743,1768481447040,-240763.2796344,0.00018,2]
[402023752,1768482021101,194.30607323,0.00028646,120]
[402023754,1768482409938,620.47,0.00025685,120]
[402023756,1768482631914,-193.187788,0.00014197,2]
[402023757,1768482631924,-1686.527,0.00014297,2]
[402023758,1768482631933,-168.43,0.00014297,2]
[402023759,1768482631943,-1200.0,0.00014489,2]
[402023760,1768482631952,-660.02810274,0.0001449,2]
[402023761,1768482631961,-196.85617873,0.0001449,2]
[402023762,1768482631971,-231.81502092,0.0001449,2]
[402023763,1768482631980,-237.92569242,0.0001449,2]
[402023764,1768482631990,-150.0,0.00014577,2]
[402023765,1768482631999,-278.0,0.00014577,2]
[402023766,1768482632010,-300.0,0.00014577,2]
[402023767,1768482632019,-300.0,0.00014577,2]
[402023768,1768482632028,-78225.55934662,0.00014578,2]
[402023769,1768482632037,-500.0,0.0001458,2]
[402023770,1768482632046,-500.0,0.00014587,2]
[402023771,1768482632055,-500.0,0.00014587,2]
[402023772,1768482632065,-500.0,0.00014587,2]
[402023773,1768482632074,-500.0,0.00014587,2]
[402023774,1768482632083,-500.0,0.00014587,2]
[402023775,1768482632093,-500.0,0.00014587,2]
[402023776,1768482632102,-500.0,0.00014587,2]
[402023777,1768482632113,-500.0,0.00014587,2]
[402023778,1768482632122,-500.0,0.00014587,2]
[402023779,1768482632131,-590.6372798,0.00014587,2]
[402023781,1768482632141,-500.0,0.00014587,2]
[402023783,1768482632150,-500.0,0.00014587,2]
[402023785,1768482632159,-500.0,0.00014587,2]
[402023787,1768482632168,-156.75586223,0.00014587,2]
[402023789,1768482632178,-500.0,0.00014587,2]
[402023791,1768482632187,-500.0,0.00014587,2]
[402023793,1768482632197,-500.0,0.00014587,2]
[402023795,1768482632206,-152.97792507,0.00014587,2]
[402023797,1768482632215,-341.15949194,0.00014587,2]
[402023798,1768482632224,-315.64470914,0.00014587,2]
[402023800,1768482632233,-500.0,0.00014587,2]
[402023801,1768482632242,-500.0,0.00014587,2]
[402023802,1768482632250,-406.2005933,0.00014587,2]
[402023803,1768482632259,-500.0,0.00014587,2]
[402023804,1768482632268,-500.0,0.00014587,2]
[402023805,1768482632277,-1000.0,0.0001459,2]
[402023806,1768482632287,-500.0,0.00014689,2]
[402023807,1768482632297,-247.59618458,0.00015,2]
[402023808,1768482632308,-277.57952442,0.00015513,2]
[402023809,1768482632317,-1281.23712116,0.00015548,2]
[402023810,1768482632326,-205.0,0.000157,2]
[402023811,1768482632335,-214.17,0.0001585,2]
[402023812,1768482632345,-151.0,0.0001585,2]
[402023813,1768482632354,-3720.19671924,0.0001587,2]
[402023814,1768482632363,-420.0,0.00015961,2]
[402023815,1768482632373,-411.74187892,0.00016012,2]
[402023816,1768482632382,-999.0,0.0001686,3]
[402023817,1768482632392,-2381.22,0.0001686,2]
[402023818,1768482632402,-1500.0,0.00016866,2]
[402023819,1768482632412,-9764.38,0.00016878,2]
[402023820,1768482632421,-1000.0,0.00016937,2]
[402023821,1768482632430,-284.8,0.00016986,3]
[402023822,1768482632439,-500.0,0.00017098,2]
[402023823,1768482632448,-2500.0,0.00017099,2]
[402023824,1768482632457,-2500.0,0.00017099,2]
[402023825,1768482632467,-2500.0,0.00017099,2]
[402023826,1768482632476,-1652.90107221,0.00017099,2]
[402023827,1768482632485,-1239.0,0.00017099,2]
[402023828,1768482632495,-574.12855637,0.00017099,2]
[402023829,1768482632504,-322.6107,0.00017099,2]
[402023830,1768482632513,-620.0,0.00017099,2]
[402023831,1768482632522,-4162.86,0.00017123,2]
[402023832,1768482632531,-218.43,0.00017123,2]
[402023833,1768482632541,-620.47,0.00017123,2]
[402023834,1768482632550,-3720.19671924,0.00017251,2]
[402023835,1768482632560,-4069.48,0.00017377,2]
[402023836,1768482632569,-166.66,0.00017416,2]
[402023837,1768482632578,-587.0,0.00017476,2]
[402023838,1768482632588,-300.0,0.00017534,3]
[402023839,1768482632597,-595.37131296,0.00017647,2]
[402023840,1768482632606,-802.0,0.00017699,2]
[402023841,1768482632615,-152.07716114,0.00017699,2]
[402023842,1768482632625,-9481.0,0.00017714,2]
[402023843,1768482632634,-9999.99,0.00017728,2]
[402023844,1768482632642,-150.99,0.00017728,2]
[402023845,1768482632652,-5159.48,0.00017728,2]
[402023846,1768482632661,-513.53,0.00017728,2]
[402023847,1768482632670,-9999.99,0.00017728,2]
[402023848,1768482632679,-9999.99,0.00017728,2]
[402023849,1768482632689,-299.99,0.00017728,4]
[402023850,1768482632698,-1174.96,0.00017728,2]
[402023851,1768482632707,-6943.08270416,0.00017728,2]
[402023852,1768482632720,-3056.90729584,0.00017728,2]
[402023853,1768482632729,-802.0,0.00017754,2]
[402023854,1768482632738,-300.0,0.00017808,3]
[402023855,1768482632747,-802.0,0.00017809,2]
[402023856,1768482632756,-200.0,0.00017856,2]
[402023857,1768482632768,-802.0,0.00017863,2]
[402023858,1768482632778,-802.0,0.00017918,2]
[402023859,1768482632787,-639.552,0.00017973,2]
[402023860,1768482632796,-802.0,0.00017973,2]
[402023861,1768482632806,-231.68548246,0.0001799,2]
[402023862,1768482632815,-166.66,0.0001799,2]
[402023863,1768482632824,-444.66179987,0.00017998,2]
[402023864,1768482632833,-22095.85309341,0.00018,2]
[402023865,1768482632845,-13651.4664202,0.00018,2]
[402023866,1768482632854,-10779.6431498,0.00018,2]
[402023867,1768482632863,-191.35043633,0.00018,2]
[402023868,1768482632872,-1324.55787,0.00018,2]
[402023869,1768482632881,-1324.55788,0.00018,2]
[402023870,1768482632890,-1324.55788,0.00018,2]
[402023871,1768482632899,-1324.55788,0.00018,2]
[402023872,1768482632909,-1324.55788,0.00018,2]
[402023873,1768482632919,-1324.55788,0.00018,2]
[402023874,1768482632929,-1324.55788,0.00018,2]
[402023875,1768482632939,-1324.55788,0.00018,2]
[402023876,1768482632948,-1324.55788,0.00018,2]
[402023877,1768482632957,-1324.55788,0.00018,2]
[402023878,1768482632970,-802.0,0.00018028,2]
[402023879,1768482632979,-1211.52,0.00018039,2]
[402023880,1768482632989,-200.0,0.00018062,2]
[402023881,1768482632998,-500.0,0.00018062,2]
[402023882,1768482633008,-239.0,0.00018076,2]
[402023883,1768482633018,-802.0,0.00018083,2]
[402023884,1768482633028,-1278.3,0.00018083,2]
[402023885,1768482633037,-239.0,0.00018115,2]
[402023886,1768482633048,-239.0,0.00018132,2]
[402023887,1768482633057,-802.0,0.00018137,2]
[402023888,1768482633066,-4506.0,0.00018139,2]
[402023889,1768482633076,-436.68,0.00018148,2]
[402023890,1768482633085,-239.0,0.00018154,2]
[402023891,1768482633096,-169.07,0.00018156,2]
[402023892,1768482633105,-239.0,0.0001818,2]
[402023893,1768482633115,-239.0,0.00018192,2]
[402023894,1768482633125,-802.0,0.00018192,2]
[402023895,1768482633134,-617.40005154,0.00018195,2]
[402023896,1768482633144,-153.99,0.00018235,2]
[402023897,1768482633153,-802.0,0.00018247,2]
[402023898,1768482633163,-150.0,0.00018263,2]
[402023899,1768482633172,-802.0,0.00018302,2]
[402023900,1768482633182,-520.56,0.00018306,2]
[402023901,1768482633192,-150.0,0.00018343,2]
[402023902,1768482633201,-802.0,0.00018357,2]
[402023903,1768482633210,-802.0,0.00018411,2]
[402023904,1768482633220,-802.0,0.00018466,2]
[402023905,1768482633230,-334.5472959,0.00018468,2]
[402023906,1768482633240,-237.92569238,0.00018518,2]